Cogmind - Beta 13 *** ADVENTURER MODE // 2024.07.04 @ 09:09:37 Player: fishy 2.0 Result: Destroyed by G-34 Mercenary with Small Laser Performance ------------- Evolutions (0) 0 Regions Visited (1) 200 Robots Destroyed (13) 65 Value Destroyed (334) 334 Prototype IDs (0) 0 Alien Tech Used (0) 0 Bonus (0) 0 TOTAL SCORE: 599 Bonus ------- None Cogmind --------- Core Integrity 0/250 Matter 300/300 Energy 85/100 System Corruption 0% Temperature Danger (473) Movement Core (150) Ox2 Location -10/Materials Parts ------- > --- POWER (1) -------- (None) > --- PROPULSION (2) --- (None) > --- UTILITY (2) ------ Small Storage Unit Targeting Computer > --- WEAPON (2) ------- Grenade Launcher > --- INVENTORY (8) ---- Ion Engine Light Ion Engine Aluminum Leg Heat Sink High-capacity Matter Pod (200) Small Laser Peak State ------------ > --- POWER ------------ Light Ion Engine > --- PROPULSION ------- Aluminum Leg Aluminum Leg > --- UTILITY ---------- Small Storage Unit Targeting Computer > --- WEAPON ----------- Medium Laser Small Laser > --- INVENTORY -------- Ion Engine [Rating: 7] Favorites ----------- Power Light Ion Engine Engine Light Ion Engine Propulsion Aluminum Leg Leg Aluminum Leg Utility Small Storage Unit Storage Small Storage Unit Processor Targeting Computer Weapon Small Laser Energy Gun Small Laser Launcher Grenade Launcher Build | -11 -10 ------- Run | Yrd Mat Slots Evolved . | . . Power . | . . Propulsion . | . . Utility . | . . Weapon . | . . Parts Attached 10 | 5 5 Power 1 | 1 . Engine 1 | 1 . Core . | . . Reactor . | . . Propulsion 4 | 2 2 Treads . | . . Leg 4 | 2 2 Wheel . | . . Hover . | . . Flight . | . . Utility 2 | . 2 Device . | . . Storage 1 | . 1 Processor 1 | . 1 Hackware . | . . Protection . | . . Artifact . | . . Weapon 3 | 2 1 Energy Gun 2 | 2 . Energy Cannon . | . . Ballistic Gun . | . . Ballistic Cannon . | . . Launcher 1 | . 1 Special Weapon . | . . Impact Weapon . | . . Slashing Weapon . | . . Piercing Weapon . | . . Special Melee Weapon . | . . Unidentified Prototypes . | . . Parts Lost 5 | . 5 Power 1 | . 1 Propulsion 2 | . 2 Utility . | . . Weapon 2 | . 2 Highest Loss Streak 5 | . 5 To Critical Strikes . | . . Average Slot Usage (%) 94 | . 94 Engine 14 | . 14 Leg 27 | . 27 Storage 12 | . 12 Processor 12 | . 12 Energy Gun 26 | . 26 Naked Turns . | . . Heaviest Build 11 | 6 11 Greatest Support 20 | 20 20 Greatest Overweight (x) . | . . Average Overweight (x) . | . . Largest Inventory Capacity 8 | 5 8 Average Capacity 7 | 5 7 Most Carried 7 | 2 7 Average Carried 3 | . 3 Final Capacity 8 | 5 8 Final Carried 6 | 1 6 Class Distribution -------------------- 100% | Mutant Dominant Class ---------------- Mutant | -10/Materials Resources | -11 -10 ----------- Run | Yrd Mat Matter Collected 490 | 250 240 Remotely . | . . Salvage Created 439 | 40 399 Parts 26 | 1 25 Haulers Intercepted . | . . Recyclers Shooed . | . . Parts Field Recycled . | . . Retrieved Matter . | . . Parts Self-Destructed . | . . Prevented . | . . Kills | -11 -10 ------- Run | Yrd Mat Combat Hostiles Destroyed 11 | 1 10 Guns 11 | 1 10 Classes Destroyed 3 | 1 2 Watcher 2 | . 2 Swarmer 3 | . 3 Grunt 8 | 1 7 Best Kill Streak 5 | 1 5 Combat Bots Only 5 | 1 5 Max Kills in Single Turn 1 | 1 1 Gunslinging . | . . Exploded . | . . Melee . | . . Uniques/NPCs Destroyed . | . . Combat | -11 -10 -------- Run | Yrd Mat Hostile Shots Fired 113 | 2 111 Missed 28 | . 28 Damage Taken 700 | 16 684 Core 252 | . 252 Absorbed by Shields . | . . Ignored by Resistances 224 | 4 220 Regen/Repaired (Parts) 56 | . 56 Core Remaining (%) 100 | 100 . Volleys Fired 56 | 2 54 Largest 2 | 2 2 Hottest 90 | 90 90 Shots Fired 90 | 4 86 Gun 90 | 4 86 Cannon . | . . Launcher . | . . Special . | . . Kinetic . | . . Thermal 90 | 4 86 Explosive . | . . Electromagnetic . | . . Robot Hit Streak 14 | 2 14 Robot Miss Streak 2 | 1 2 Penetration Max . | . . Secondary Targets 1 | . 1 Max Gunslinging Chain 1 | . 1 Shots Hit Robots 72 | 2 70 Core Hits 23 | 2 21 Critical Kills . | . . Critical Parts Destroyed . | . . Critical Strikes 2 | . 2 Burn 2 | . 2 Melee Attacks . | . . Impact . | . . Slashing . | . . Piercing . | . . Sneak Attacks . | . . Combat Hostiles . | . . Follow-up Attacks . | . . Damage Inflicted 860 | 25 835 Guns 860 | 25 835 Cannons . | . . Explosions . | . . Melee . | . . Ramming . | . . Kinetic . | . . Thermal 860 | 25 835 Explosive . | . . Electromagnetic . | . . Impact . | . . Slashing . | . . Piercing . | . . Highest Corruption . | . . Average Corruption . | . . Corruption Purged . | . . Corruption Blocked . | . . Overload Shots . | . . Overflow Damage . | . . Projectiles . | . . Explosions . | . . Melee . | . . Knockbacks . | . . Impact . | . . Kinetic . | . . Secondary . | . . Self-Inflicted Damage . | . . Shots . | . . Rammed . | . . Targets Rammed . | . . Kicked . | . . Crushed . | . . Highest Temperature 492 | 72 492 Average Temperature 223 | 42 232 Received Heat Transfer 483 | 12 471 Effects 12 | . 12 Shutdowns 6 | . 6 Energy Bleed 1 | . 1 Damage (minor) 2 | . 2 Damage (major) 3 | . 3 Siege Activations . | . . Robots Corrupted . | . . Combat Hostiles . | . . Parts Fried . | . . Impact Corruptions . | . . Robots Melted . | . . Combat Hostiles . | . . Parts Melted 7 | . 7 Heat Transferred 2358 | 62 2296 Parts Sabotaged . | . . Parts Stolen . | . . Parts Stripped . | . . Power Chain Reactions . | . . Alert | -11 -10 ------- Run | Yrd Mat Peak Influence 216 | 20 216 Initial 11 | . 11 Average 105 | 4 125 Maximum Alert Level 1 | . 1 Low Security (%) 89 | 100 87 Level 1 10 | . 12 Level 2 . | . . Level 3 . | . . Level 4 . | . . Level 5 . | . . High Security . | . . Max Security . | . . Squads Dispatched 3 | . 3 Investigation 3 | . 3 Extermination . | . . Reinforcement . | . . Assault . | . . Garrison . | . . Intercept . | . . Searches Triggered . | . . Construction Impeded . | . . Haulers Reinforced . | . . Active Scanning Responses . | . . Cargo Convoy Interrupts . | . . Stealth | -11 -10 --------- Run | Yrd Mat Distress Signals 1 | . 1 Communications Jammed . | . . Distress Signals . | . . Times Spotted 17 | 1 16 Peak Tracking Total 4 | . 4 Tactical Retreats 1 | . 1 Traps | -11 -10 ------- Run | Yrd Mat Traps Triggered 2 | . 2 Indirectly . | . . Trap Hack Attempts . | . . Triggered . | . . Disarmed . | . . Reprogrammed 1 | . 1 Reused . | . . Traps Extracted . | . . Installed . | . . Triggered . | . . Machines | -11 -10 ---------- Run | Yrd Mat Machines Disabled . | . . Max in Single Turn . | . . Machines Repaired . | . . Machines Dismantled . | . . Machines Sabotaged . | . . Overloaded Fab Kills . | . . Hacking | -11 -10 --------- Run | Yrd Mat Machines Accessed 3 | . 3 Terminals 2 | . 2 Fabricators . | . . Repair Stations 1 | . 1 Recycling Units . | . . Scanalyzers . | . . Garrison Access . | . . Total Hacks 10 | . 10 Successful 8 | . 8 Failed 2 | . 2 Catastrophic . | . . Database Lockouts . | . . Manual . | . . Terminals 8 | . 8 Fabricators . | . . Repair Stations 2 | . 2 Recycling Units . | . . Scanalyzers . | . . Garrison Access . | . . Terminal Hacks 6 | . 6 Record 3 | . 3 Robot Analysis 1 | . 1 Reprogram Traps 1 | . 1 Patrol Status 1 | . 1 Fabricator Hacks . | . . Repair Station Hacks 2 | . 2 Scan Component 1 | . 1 Repair 1 | . 1 Recycling Unit Hacks . | . . Scanalyzer . | . . Garrison Access Hacks . | . . Unauthorized Hacks . | . . Terminals . | . . Fabricators . | . . Repair Stations . | . . Recycling Units . | . . Scanalyzers . | . . Garrison Access . | . . Data Cores Recovered . | . . Used . | . . Hacking Detections 2 | . 2 Full Trace Events 2 | . 2 Feedback Events . | . . Feedback Blocked . | . . Robot Schematics Acquired . | . . Robots Built . | . . Authchips . | . . Time . | . . Total Robot Build Rating . | . . Part Schematics Acquired . | . . Parts Built . | . . Authchips . | . . Time . | . . Total Part Build Rating . | . . Parts Repaired 1 | . 1 Time 26 | . 26 Parts Recycled . | . . Recycled Matter . | . . Retrieved Matter . | . . Retrieved Components . | . . Parts Scanalyzed . | . . Part Schematics Acquired . | . . Parts Damaged . | . . Bothacking | -11 -10 ------------ Run | Yrd Mat Used RIF Installer . | . . Robots Hacked . | . . Non-combat . | . . Combat . | . . Robot Hacks Applied . | . . Relay Couplers Released . | . . Fabnet Peak Effective % . | . . Robots Rewired . | . . Allies Hacked . | . . Hacks Repelled . | . . Allies | -11 -10 -------- Run | Yrd Mat Total Allies . | . . Largest Group . | . . Highest-Rated Group . | . . Highest-Rated Ally . | . . Total Orders . | . . Ally Attacks . | . . Total Damage . | . . Kills . | . . Allies Corrupted . | . . Allies Melted . | . . Intel | -11 -10 ------- Run | Yrd Mat Robot Analysis Total 1 | . 1 Derelict Logs Recovered . | . . Drone Launches . | . . Drone Recoveries . | . . Exploration | -11 -10 ------------- Run | Yrd Mat Turns Passed 557 | 92 465 Spaces Moved 334 | 76 258 Core 22 | 22 . Treads . | . . Legs 312 | 54 258 Wheels . | . . Hover . | . . Flight . | . . Fastest Speed 50 | 50 120 Average Speed 115 | 99 120 Slowest Speed 120 | 120 120 Overloaded Moves . | . . Propulsion Burnouts . | . . Robots Hopped . | . . Cave-ins Triggered . | . . Exploration Rate (%) 23 | 9 37 Regions Visited 1 Branch Regions . Pre-discovered Areas . | . . Known Exits Taken . | . . Unknown Exits Taken 1 | 1 . Scrap Searched . | . . Spaces Dug . | . . Terrain Destroyed . | . . Melee . | . . Projectile . | . . AOE . | . . Terrain Rammed . | . . Walls Destroyed . | . . Machines Disabled . | . . Actions | -11 -10 --------- Run | Yrd Mat Total 414 | 88 326 Wait . | . . Move 333 | 75 258 Hop . | . . Pick Up 15 | 6 9 Fast Attach . | . . Attach 8 | 5 3 Detach . | . . Swap 2 | . 2 Drop . | . . Fire 56 | 2 54 Melee . | . . Ram . | . . Kick . | . . Crush . | . . Escape Stasis . | . . Rewire . | . . Trap . | . . Miscellaneous . | . . Route ------- -11/Scrapyard -10/Materials (discovered 1 exit: [*Mat]) History --------- Turn | Location | Event 2 | -11/Scrapyard | Met Revision 17 62 | -11/Scrapyard | Discovered new exit (range 8) 93 | -11/Scrapyard | Entered Materials 309 | -10/Materials | Build established: Mutant 443 | -10/Materials | Repaired Aluminum Leg 511 | -10/Materials | Discovered new exit (range 14) 513 | -10/Materials | Core integrity fell below 50% 551 | -10/Materials | Core integrity fell below 20% 558 | -10/Materials | Destroyed by G-34 Mercenary with Small Laser Last Messages --------------- Destroyed Ion Engine. G-34 Mercenary overheating. Sml. Laser melted. G-34 Mercenary destroyed. K-01 Serf collects debris. Acquired 25 matter. Overheating: Sml. Storage Unit damaged (-21). Power failure, Lgt. Ion Engine shutdown. K-01 Serf collects debris. Aluminum Leg destroyed. K-01 Serf collects debris. Overheating: Sml. Storage Unit damaged (-5). K-01 Serf collects debris. Power failure, Lgt. Ion Engine shutdown. Lgt. Ion Engine destroyed. K-01 Serf collects debris. Sml. Laser destroyed. Critical hit (Burn: +37). K-01 Serf collects debris. Acquired 10 matter. Map ----- +----------------------------------------------------+ | | | | | ?????????????????????????????????????????????????? | | ?????????????????????????????????????????????????? | | ?????????????????????????????????????????????????? | | ?????????????????????????????????????????????????? | | ?????????????????????????????????????????????????? | | ?????????????????????????????????????????????????? | | ?????????????????????????????????????????????????? | | ?????????????????????????????????????????????????? | | ?????????????????????????????????????????????????? | | ???????????????????????####??????????????????????? | | ???????????????????????# ??????????????????????? | | ???????????????????###?# < #?????????????????????? | | ????????????????""T"""## #?????????????????????? | | ????????????????? #?????????????????????? | | ?????????????????? #?????????????????????? | | ??????????????????? +?????????????????????? | | ??????????????????? #?????????????????????? | | ??????????????????""" #?????????????????????? | | ??????????????????"""" #?????????????????????? | | ?????????????????""""" #?????????????????????? | | ????????????# """"" #?????????????????????? | | ????????????# """ #?????????????????????? | | ????????????# ! m% #################?????? | | ???????????+ *@ ! ????? | | ???????????# g * * *!! ????? | | ???????????# k g =%= *%=%= T ??????? | | ??????????? ##T########*uk= ######????????? | | ??????????? ??????????????# ! #?????????????? | | ??????????????????????????# #?????????????? | | ??????????????????????????#| k #?????????????? | | ??????????????????????????# #?????????????? | | ?????????????????????#######+#######?????????????? | | ?????????????????????# % #?###???????????? | | ?????????????????????# ###T############# | | ?????????????????????# """ + | | ?????????????????????# """ " " #### | | ?????????????????????# """ "R" #??#= | | ?????????????? ??????# """ #??# = === | | ?????????????" ?????# #??# #####+##+## | | ????????????? ##########+######### ## !%! # | | ???????????? #### ##! # | | ???????????? ##!! # | | ??????????? ^ ##! # | | ???????????? """"""" ########### | | ????????????????####### """"""" # #?# | | ??????????????????????# """"""" # ! ###+ | | ??????????????????????# """"""" # =# | | ??????????????????????# """"""" # """ # | +----------------------------------------------------+ Best States ------------- Heat Dissipation 25 Energy Generation 10 Energy Capacity 125 Matter Stores 300 Matter Capacity 300 Sight Range 16 Terrain Scan Density 10 Resistance: KI 20 Resistance: TH 20 Resistance: EX 20 Resistance: EM 20 Resistance: I 20 Resistance: S 20 Resistance: P 20 Evasion (%) 55 Targeting Accuracy 5 Offensive Hacking 10 Item Schematics ----------------- None Robot Schematics ------------------ None Fabricated ------------ Nothing Alien Tech Used ----------------- None Achievements -------------- None Challenges ------------ None Game ------ Seed ControlCoordinationMultirail Manual? 0 Play Time 00:10:52 Cumulative 1.5 hours Start 2024.07.04 @ 01:40:23 End 2024.07.04 @ 09:09:37 Sessions 3 Manual Loads 0 Difficulty Adventurer Special Mode None Game No. 3 Rogue 0 Adventurer 3 Explorer 0 Win Type - Total 0 Types 0/0/0/0/0/0/0/0/0 Lore% 2 Gallery% 5 Achievement% 6 Wizard Run 0 Options --------- Layout 1 ASCII 0 Keyboard 0 Movement Mouse Keybinds 0 Fullscreen 1 Font 24/Smallcaps Map View 50x35 Zoom Use 0% Tactical HUD 0 Map Filters NONE Filters NONE Steam 1 RUN: 505f394c-5322-4a6f-abd4-abfbf6a8833b